[Event "Polish Youth Ekstraliga 2022"]
[Site "Lublin"]
[Date "2022.06.28"]
[Round "4.27"]
[White "Zielonka, Adam"]
[Black "Mulawa, Cyprian"]
[Result "0-1"]
[ECO "B51"]
[WhiteElo "1988"]
[BlackElo "2050"]
[Annotator "NA RC"]
[PlyCount "122"]
[EventDate "2022.06.24"]
[EventType "team-tourn"]
[EventCountry "POL"]
[SourceTitle "playchess.com"]
[Source "ChessBase"]
[SourceQuality "1"]
[TimeControl "40/5400+30:1800+30"]

1. e4 c5 {[%emt 0:00:12]} 2. Nf3 {[%emt 0:00:07]} d6 {[%emt 0:00:33]} 3. Bb5+ {[%emt 0:00:06]} Nd7 {[%emt 0:00:14]} 4. Ba4 {[%emt 0:00:05]} Ngf6 {[%emt 0:01:05]} 5. O-O {[%emt 0:00:23]} g6 {[%emt 0:00:58]} 6. Re1 {[%emt 0:00:58]} Bg7 {[%emt 0:00:08]} 7. c3 {[%emt 0:01:08]} O-O {[%emt 0:03:57]} 8. d4 {[%emt 0:03:46]} e6 {[%emt 0:18:14]} 9. Bf4 {[%emt 0:08:20]} d5 {[%emt 0:17:22]} 10. Bd6 {[%emt 0:10:03]} Nxe4 {[%emt 0:02:39]} 11. Bxf8 {[%emt 0:00:48]} Qxf8 {[%emt 0:00:02]} 12. Bxd7 {[%emt 0:06:35]} Bxd7 {[%emt 0:00:06]} 13. Ne5 {[%emt 0:00:22]} Be8 {[%emt 0:03:12]} 14. Nd2 {[%emt 0:02:24]} Nf6 {[%emt 0:04:50]} 15. Qe2 {[%emt 0:04:40]} Rd8 {[%emt 0:06:07]} 16. Nb3 {[%emt 0:04:55]} b6 {[%emt 0:10:46]} 17. Qa6 {[%emt 0:21:35]} Qe7 {[%emt 0:05:52]} 18. a4 {[%emt 0:00:53] [#]} Ne4 {[%emt 0:02:35]} (18... c4 $1 $17 {[%cal Rc4b3]} 19. Nd2 Rb8) 19. f3 {[%emt 0:08:16] [#]} cxd4 $1 {[%emt 0:02:32]} 20. fxe4 {[%emt 0:04:10]} Bxe5 {[%emt 0:00:06]} 21. cxd4 {[%emt 0:00:07]} Bf4 {[%emt 0:00:11]} 22. Qd3 {[%emt 0:01:37]} dxe4 {[%emt 0:01:09]} 23. Qxe4 {[%emt 0:00:34]} Qh4 {[%emt 0:02:32]} 24. h3 {[%emt 0:06:57]} Qg3 {[%emt 0:00:47]} 25. Qf3 {[%emt 0:00:04]} Qxf3 26. gxf3 {[%emt 0:00:05]} Bc6 {[%emt 0:00:07]} 27. Kf2 {[%emt 0:00:47]} Bd5 {[%emt 0:00:36]} 28. Nc1 {[%emt 0:00:46]} Rc8 {[%emt 0:06:10]} 29. Nd3 {[%emt 0:01:37]} Bg5 {[%emt 0:00:44]} 30. Re2 {[%emt 0:00:06]} Rc4 {[%emt 0:00:54]} 31. f4 $17 {[%emt 0:02:52]} Bf6 {[%emt 0:01:29]} 32. Ra3 {[%emt 0:06:09]} Bxd4+ {[%emt 0:00:35]} 33. Ke1 {[%emt 0:00:27]} Bf3 {[%emt 0:02:39]} 34. Rh2 {[%emt 0:01:35]} Bg1 {[%emt 0:01:04]} 35. Rd2 {[%emt 0:00:06]} Be3 {[%emt 0:00:08]} 36. Rh2 {[%emt 0:00:26]} h5 {[%emt 0:02:12]} 37. h4 {[%emt 0:00:23]} Bd5 {[%emt 0:00:36]} 38. Rc3 {[%emt 0:02:43]} Rxa4 {[%emt 0:00:27]} 39. Ra3 {[%emt 0:00:06]} Rxa3 {[%emt 0:01:33]} 40. bxa3 {[%emt 0:00:00]} a5 {[%emt 0:00:00]} 41. Rh3 {[%emt 0:03:11]} Bd4 {[%emt 0:00:38]} 42. Kd2 {[%emt 0:00:27]} b5 {[%emt 0:01:19]} 43. Nc1 {[%emt 0:00:36]} b4 {[%emt 0:02:31]} 44. Kc2 {[%emt 0:06:46]} bxa3 {[%emt 0:03:54]} 45. Rxa3 {[%emt 0:00:06]} Bf6 {[%emt 0:00:01]} 46. Rxa5 {[%emt 0:00:32]} Bxh4 {[%emt 0:00:03]} 47. Kd3 {[%emt 0:00:25]} Be1 {[%emt 0:01:28]} 48. Ra1 {[%emt 0:00:43]} h4 {[%emt 0:01:03]} 49. Ne2 {[%emt 0:00:02]} Bf2 {[%emt 0:01:43]} 50. Rf1 {[%emt 0:04:45]} Bc5 {[%emt 0:00:04]} 51. Rc1 {[%emt 0:00:31]} Be7 {[%emt 0:01:16]} 52. Nc3 {[%emt 0:04:40]} Bg2 {[%emt 0:02:08]} 53. Ke2 {[%emt 0:00:45]} h3 {[%emt 0:03:53]} 54. Kf2 {[%emt 0:00:15]} Bc5+ {[%emt 0:00:03]} 55. Kg3 {[%emt 0:00:07]} Be3 {[%emt 0:00:02]} 56. Rd1 {[%emt 0:01:28]} Bxf4+ 57. Kf2 {[%emt 0:00:17]} Bc6 {[%emt 0:00:42]} 58. Ne2 Bc7 59. Nd4 {[%emt 0:01:52]} Bd5 {[%emt 0:02:10]} 60. Nf3 {[%emt 0:01:02]} h2 {[%emt 0:01:31]} 61. Nxh2 {[%emt 0:02:14]} Bxh2 {[%emt 0:00:08]} 0-1

[Event "Polish Youth Ekstraliga 2022"]
[Site "Lublin"]
[Date "2022.06.28"]
[Round "4.28"]
[White "Suska, Szymon"]
[Black "Liskiewicz, Jakub"]
[Result "1-0"]
[ECO "A06"]
[WhiteElo "1604"]
[BlackElo "1839"]
[Annotator "NA RC"]
[PlyCount "75"]
[EventDate "2022.06.24"]
[EventType "team-tourn"]
[EventCountry "POL"]
[SourceTitle "playchess.com"]
[Source "ChessBase"]
[SourceQuality "1"]
[TimeControl "40/5400+30:1800+30"]

1. Nf3 {[%emt 0:00:04]} d5 {[%emt 0:00:09]} 2. b3 {[%emt 0:00:07]} c5 {[%emt 0:00:08]} 3. Bb2 {[%emt 0:00:06]} Nc6 {[%emt 0:00:08]} 4. e3 {[%emt 0:00:07]} Nf6 {[%emt 0:00:09]} 5. Bb5 {[%emt 0:00:38]} Bd7 {[%emt 0:00:09]} 6. O-O {[%emt 0:00:37]} e6 {[%emt 0:01:01]} 7. d3 {[%emt 0:00:16]} Be7 {[%emt 0:03:36]} 8. Nbd2 {[%emt 0:00:18]} O-O {[%emt 0:00:38]} 9. Qe2 {[%emt 0:01:19]} a6 {[%emt 0:01:00]} 10. Bxc6 {[%emt 0:00:06]} Bxc6 {[%emt 0:00:06]} 11. Ne5 {[%emt 0:00:34]} Rc8 {[%emt 0:01:51]} 12. f4 {[%emt 0:01:33]} Be8 {[%emt 0:03:42]} 13. Rf3 {[%emt 0:09:50]} Nd7 {[%emt 0:09:08]} 14. Rg3 {[%emt 0:04:13]} Bf6 {[%emt 0:13:02]} 15. Rf1 {[%emt 0:18:48]} b5 {[%emt 0:09:31]} 16. Nxd7 {[%emt 0:12:04]} Bxd7 {[%emt 0:00:15]} 17. Be5 {[%emt 0:08:38]} c4 {[%emt 0:05:16]} 18. Qh5 {[%emt 0:04:38]} cxd3 $2 {[%emt 0:08:19]} (18... g6 $2 19. Qh6 Re8 20. Rh3 $18) (18... Bxe5 $11 19. fxe5 f5) 19. Qh6 {[%emt 0:02:13]} g6 {[%emt 0:03:39]} 20. Rh3 {[%emt 0:02:25]} Re8 {[%emt 0:03:44]} 21. Qxh7+ {[%emt 0:02:11]} Kf8 {[%emt 0:00:08]} 22. Bd6+ {[%emt 0:01:51]} Re7 {[%emt 0:00:15]} 23. Qh8+ {[%emt 0:02:22]} Bxh8 {[%emt 0:00:09]} 24. Rxh8+ {[%emt 0:00:03]} Kg7 {[%emt 0:00:07]} 25. Rxd8 {[%emt 0:00:03]} Rxd8 {[%emt 0:00:07]} 26. Bxe7 {[%emt 0:00:06]} Re8 {[%emt 0:02:40]} 27. Bc5 {[%emt 0:00:56]} Rc8 {[%emt 0:01:50]} 28. Bd4+ {[%emt 0:00:15]} e5 {[%emt 0:00:06]} 29. fxe5 {[%emt 0:00:12]} dxc2 {[%emt 0:00:44]} 30. Rc1 {[%emt 0:00:59]} Kf8 {[%emt 0:00:29]} 31. b4 {[%emt 0:01:03]} Bf5 {[%emt 0:00:22]} 32. Bc5+ {[%emt 0:00:39]} Ke8 {[%emt 0:00:09]} 33. Nb3 {[%emt 0:00:58]} Kd7 {[%emt 0:00:28]} 34. Nd4 {[%emt 0:01:15]} Be4 {[%emt 0:01:23]} 35. Nxc2 {[%emt 0:00:22]} a5 {[%emt 0:00:08]} 36. a3 {[%emt 0:00:10]} axb4 $18 {[%emt 0:00:22]} 37. axb4 {[%emt 0:00:05]} Ra8 {[%emt 0:00:48]} 38. Ra1 {[%emt 0:00:23]} 1-0

[Event "Polish Youth Ekstraliga 2022"]
[Site "Lublin"]
[Date "2022.06.28"]
[Round "4.29"]
[White "Zabrzanska, Weronika"]
[Black "Rejniak, Zuzanna"]
[Result "1/2-1/2"]
[ECO "B22"]
[WhiteElo "1882"]
[BlackElo "1804"]
[Annotator "NA RC"]
[PlyCount "118"]
[EventDate "2022.06.24"]
[EventType "team-tourn"]
[EventCountry "POL"]
[SourceTitle "playchess.com"]
[Source "ChessBase"]
[SourceQuality "1"]
[TimeControl "40/5400+30:1800+30"]

1. e4 {[%emt 0:00:07]} c5 {[%emt 0:00:06]} 2. c3 {[%emt 0:00:20]} Nf6 {[%emt 0:00:06]} 3. e5 {[%emt 0:00:05]} Nd5 {[%emt 0:00:06]} 4. Nf3 {[%emt 0:00:08]} e6 {[%emt 0:02:48]} 5. d4 {[%emt 0:03:22]} cxd4 {[%emt 0:00:05]} 6. cxd4 {[%emt 0:03:31]} d6 {[%emt 0:03:27]} 7. Bc4 {[%emt 0:08:05]} Nc6 {[%emt 0:05:33]} 8. O-O {[%emt 0:01:10]} Be7 {[%emt 0:04:18]} 9. Qe2 {[%emt 0:00:36]} O-O {[%emt 0:06:44]} 10. Nc3 {[%emt 0:00:32]} Nxc3 {[%emt 0:03:31]} 11. bxc3 {[%emt 0:00:08]} dxe5 {[%emt 0:00:04]} 12. dxe5 {[%emt 0:00:21]} Qa5 {[%emt 0:03:17]} 13. Bd2 {[%emt 0:22:56]} Bd7 {[%emt 0:06:14]} 14. Bd3 {[%emt 0:04:55]} f5 {[%emt 0:07:56]} 15. exf6 {[%emt 0:09:29]} Bxf6 {[%emt 0:01:10]} 16. Bxh7+ {[%emt 0:09:00]} Kxh7 {[%emt 0:04:09]} 17. Qd3+ {[%emt 0:00:33]} Qf5 {[%emt 0:04:43]} 18. Qxd7 {[%emt 0:00:48]} Rab8 {[%emt 0:13:16]} 19. Rae1 {[%emt 0:09:18]} Ne5 $16 {[%emt 0:05:01]} 20. Nxe5 {[%emt 0:02:16]} Bxe5 {[%emt 0:00:04]} 21. Qa4 {[%emt 0:06:01]} Rbd8 {[%emt 0:04:20]} 22. Qh4+ {[%emt 0:01:50]} Kg8 {[%emt 0:00:17]} 23. f4 {[%emt 0:04:15]} Bxc3 {[%emt 0:03:58]} 24. Bxc3 {[%emt 0:01:56]} Qc5+ {[%emt 0:00:08]} 25. Qf2 {[%emt 0:00:48]} Qxc3 {[%emt 0:00:06]} 26. Qxa7 {[%emt 0:04:29]} Qd4+ {[%emt 0:00:07]} 27. Qxd4 {[%emt 0:00:08]} Rxd4 {[%emt 0:00:03]} 28. Rxe6 {[%emt 0:00:11]} Rdxf4 {[%emt 0:00:17]} 29. Rxf4 {[%emt 0:05:10]} Rxf4 {[%emt 0:00:05]} 30. Re3 {[%emt 0:00:50]} Ra4 {[%emt 0:00:26]} 31. a3 {[%emt 0:00:09]} Rf4 {[%emt 0:08:52]} 32. Re8+ {[%emt 0:01:16]} Kh7 {[%emt 0:00:08]} 33. Re3 {[%emt 0:00:45]} Kg8 {[%emt 0:01:22]} 34. Rb3 {[%emt 0:00:51]} Ra4 {[%emt 0:00:05]} 35. Kf2 {[%emt 0:00:07]} b5 {[%emt 0:00:31]} 36. h3 {[%emt 0:00:34]} Kf7 {[%emt 0:00:50]} 37. Ke3 {[%emt 0:00:21]} Ke6 {[%emt 0:03:10]} 38. Kd3 {[%emt 0:00:28]} Kd6 {[%emt 0:01:12]} 39. Kc2 {[%emt 0:00:42]} Kc6 {[%emt 0:05:11]} 40. Rg3 {[%emt 0:00:00]} Ra7 {[%emt 0:00:00]} 41. Kb3 {[%emt 0:05:49]} Kb6 {[%emt 0:03:19]} 42. Re3 {[%emt 0:01:40]} Ka5 {[%emt 0:02:57]} 43. h4 {[%emt 0:01:10]} Rf7 {[%emt 0:01:24]} 44. Re5 {[%emt 0:03:54]} Rf4 {[%emt 0:01:02]} 45. Rg5 {[%emt 0:02:12]} Rxh4 {[%emt 0:01:06]} 46. Rxg7 {[%emt 0:00:25]} Re4 {[%emt 0:00:20]} 47. Rg3 {[%emt 0:00:49]} Re2 {[%emt 0:00:59]} 48. Rg8 {[%emt 0:03:50]} Re3+ {[%emt 0:01:05]} 49. Kc2 {[%emt 0:02:49]} Rxa3 {[%emt 0:01:39]} 50. Ra8+ {[%emt 0:01:06]} Kb4 {[%emt 0:00:03]} 51. Rxa3 {[%emt 0:00:30]} Kxa3 {[%emt 0:00:03]} 52. g4 {[%emt 0:04:30]} Ka2 {[%emt 0:00:30]} 53. g5 {[%emt 0:01:30]} b4 {[%emt 0:00:06]} 54. g6 {[%emt 0:00:20]} b3+ {[%emt 0:00:01]} 55. Kc3 {[%emt 0:00:31]} b2 {[%emt 0:00:14]} 56. g7 {[%emt 0:00:12]} b1=Q {[%emt 0:00:33]} 57. g8=Q+ {[%emt 0:00:12]} Ka1 {[%emt 0:00:02]} 58. Qa8+ {[%emt 0:03:59]} Qa2 {[%emt 0:00:09]} 59. Qxa2+ {[%emt 0:01:08]} Kxa2 {[%emt 0:00:37]} 1/2-1/2

[Event "Polish Youth Ekstraliga 2022"]
[Site "Lublin"]
[Date "2022.06.28"]
[Round "4.30"]
[White "Dabrowska, Ewa"]
[Black "Polakiewicz, Blanka"]
[Result "0-1"]
[ECO "B40"]
[WhiteElo "1133"]
[BlackElo "1151"]
[Annotator "NA RC"]
[PlyCount "110"]
[EventDate "2022.06.24"]
[EventType "team-tourn"]
[EventCountry "POL"]
[SourceTitle "playchess.com"]
[Source "ChessBase"]
[SourceQuality "1"]
[TimeControl "40/5400+30:1800+30"]

1. e4 {[%emt 0:00:02]} c5 {[%emt 0:00:05]} 2. Nf3 {[%emt 0:00:10]} e6 {[%emt 0:00:07]} 3. c3 {[%emt 0:00:08]} Nf6 {[%emt 0:00:23]} 4. d4 {[%emt 0:01:33]} Nxe4 {[%emt 0:01:28]} 5. d5 {[%emt 0:01:38]} Be7 {[%emt 0:05:53]} 6. Be3 {[%emt 0:03:10]} b6 {[%emt 0:04:16]} 7. Qd3 {[%emt 0:04:30]} Nf6 {[%emt 0:03:08]} 8. dxe6 {[%emt 0:02:24]} dxe6 {[%emt 0:01:44]} 9. Na3 {[%emt 0:03:23]} Qxd3 {[%emt 0:02:36]} 10. Bxd3 {[%emt 0:00:17]} a6 {[%emt 0:02:21]} 11. Nc4 {[%emt 0:03:22]} Bb7 {[%emt 0:03:19]} 12. Nxb6 {[%emt 0:03:44]} Ra7 {[%emt 0:01:35]} 13. Be2 {[%emt 0:12:35]} Bc6 {[%emt 0:06:03]} 14. Rd1 {[%emt 0:04:15]} Bb5 {[%emt 0:04:25]} 15. Bxb5+ {[%emt 0:05:41]} axb5 {[%emt 0:00:32]} 16. Nc8 {[%emt 0:00:40]} Rc7 {[%emt 0:03:58]} 17. Nxe7 {[%emt 0:01:04]} Kxe7 {[%emt 0:00:21]} 18. Bf4 {[%emt 0:03:29]} Rd7 {[%emt 0:02:07]} 19. O-O {[%emt 0:02:24]} Rxd1 {[%emt 0:04:30]} 20. Rxd1 {[%emt 0:00:15]} Nd5 {[%emt 0:01:00]} 21. Bg3 {[%emt 0:03:07]} Nc6 {[%emt 0:01:53]} 22. Ne5 {[%emt 0:03:40]} Nxe5 {[%emt 0:00:44]} 23. Bxe5 {[%emt 0:00:06]} f6 {[%emt 0:01:04]} 24. Bg3 {[%emt 0:00:55]} Rd8 {[%emt 0:02:07]} 25. f3 {[%emt 0:07:07]} Nb6 {[%emt 0:06:11]} 26. Rxd8 {[%emt 0:00:46]} Kxd8 {[%emt 0:00:01]} 27. Bf2 {[%emt 0:01:56]} Na4 {[%emt 0:02:32]} 28. a3 {[%emt 0:04:27]} c4 {[%emt 0:02:24]} 29. Kf1 {[%emt 0:04:48]} Nxb2 {[%emt 0:00:46]} 30. Bc5 {[%emt 0:01:26]} Nd3 {[%emt 0:03:14]} 31. Bb4 {[%emt 0:01:54]} Nxb4 {[%emt 0:00:38]} 32. axb4 {[%emt 0:01:12]} Kd7 {[%emt 0:00:24]} 33. Ke2 {[%emt 0:03:37]} Kd6 {[%emt 0:00:36]} 34. g3 {[%emt 0:03:01]} g5 {[%emt 0:01:33]} 35. h3 {[%emt 0:01:58]} h5 {[%emt 0:01:24]} 36. f4 {[%emt 0:04:21]} gxf4 {[%emt 0:00:38]} 37. gxf4 {[%emt 0:00:23]} f5 {[%emt 0:00:30]} 38. h4 {[%emt 0:00:37]} e5 {[%emt 0:00:46]} 39. fxe5+ {[%emt 0:00:22]} Kxe5 {[%emt 0:00:07]} 40. Ke3 {[%emt 0:00:00]} f4+ {[%emt 0:00:00]} 41. Kf3 {[%emt 0:02:02]} Kf5 {[%emt 0:00:13]} 42. Kf2 {[%emt 0:01:32]} Ke4 {[%emt 0:00:04]} 43. Ke2 {[%emt 0:00:37]} f3+ {[%emt 0:00:11]} 44. Kd2 {[%emt 0:01:21]} Kf4 {[%emt 0:00:20]} 45. Kd1 {[%emt 0:01:15]} Kg3 {[%emt 0:00:23]} 46. Ke1 {[%emt 0:00:40]} Kg2 {[%emt 0:00:23]} 47. Kd2 {[%emt 0:00:26]} f2 {[%emt 0:00:09]} 48. Ke3 {[%emt 0:00:30]} f1=Q {[%emt 0:00:08]} 49. Ke4 {[%emt 0:00:21]} Qd1 {[%emt 0:00:11]} 50. Ke5 {[%emt 0:00:33]} Kf3 {[%emt 0:00:22]} 51. Ke6 {[%emt 0:00:45]} Kf4 {[%emt 0:00:08]} 52. Ke7 {[%emt 0:00:28]} Kf5 {[%emt 0:00:14]} 53. Kf8 {[%emt 0:00:21]} Qd7 {[%emt 0:00:11]} 54. Kg8 {[%emt 0:00:20]} Kg6 {[%emt 0:00:15]} 55. Kh8 {[%emt 0:00:07]} Qg7# {[%emt 0:00:05]} 0-1

[Event "Polish Youth Ekstraliga 2022"]
[Site "Lublin"]
[Date "2022.06.29"]
[Round "5.1"]
[White "Baum, Jonasz"]
[Black "Czopor, Maciej"]
[Result "0-1"]
[ECO "D27"]
[WhiteElo "2409"]
[BlackElo "2425"]
[Annotator "TA"]
[PlyCount "102"]
[EventDate "2022.06.24"]
[EventType "team-tourn"]
[EventCountry "POL"]
[SourceTitle "playchess.com"]
[Source "ChessBase"]
[SourceQuality "1"]
[TimeControl "40/5400+30:1800+30"]

{[%evp 12,102,44,14,20,13,27,26,40,24,8,2,48,0,-10,-6,17,-16,-20,-27,-29,-39,0,0,0,0,0,0,0,0,0,0,0,0,22,-39,-51,-46,-46,-45,-51,-77,-73,-82,-80,-125,-125,-119,-118,-127,-118,-171,-166,-195,-195,-256,-247,-281,-276,-379,-381,-347,-367,-356,-343,-287,-208,-294,-300,-278,-251,-347,-339,-358,-362,-353,-334,-516,-512,-1064,-958,-1003,-733,-808,-868,-1378,-1370,-1370,-1310,-1197,-1230,-807,-746]} 1. d4 {[%emt 0:00:02]} d5 {[%emt 0:01:26]} 2. Nf3 {[%emt 0:01:12]} Nf6 {[%emt 0:00:20]} 3. c4 {[%emt 0:00:05]} dxc4 {[%emt 0:00:12]} 4. e3 {[%emt 0:00:42][%cal Be2e3,Be3e4,Be4e5][%mdl 32]} e6 {[%emt 0:00:12]} 5. Bxc4 {[%emt 0:00:25]} c5 {[%emt 0:00:32]} 6. O-O {[%emt 0:01:11]} a6 {[%emt 0:00:23]} 7. e4 {[%emt 0:07:46]} cxd4 {[%emt 0:17:18] D27: Queen's Gambit Accepted: Classical main line: 7 e4!? and 7 a4.} 8. e5 {[%emt 0:03:50]} Nfd7 {[%emt 0:00:31]} 9. Qxd4 {[%emt 0:03:39]} Nc6 {[%emt 0:02:09] White has an edge.} 10. Qe4 {[%emt 0:06:34]} Qc7 {[%emt 0:02:27][%cal Rc6e5]} 11. Bf4 {[%emt 0:02:56]} Nc5 {[%emt 0:04:24] [#]} (11... b5 $1 $11 {was preferrable.} 12. Be2 Bc5) 12. Qc2 $146 {[%emt 0:03:19]} (12. Qe3 $14) ({Predecessor:} 12. Qe3 Bd7 13. Nc3 b5 14. Be2 b4 15. Ne4 Nxe4 16. Qxe4 a5 17. Rac1 Rc8 18. Rfd1 {1-0 (52) Kretov,E (2269)-Belenkaya,D (2293) Chess.com INT 2021}) 12... b5 $11 {[%emt 0:02:00]} 13. Be2 {[%emt 0:00:08]} Nb4 {[%emt 0:11:46]} 14. Qc1 {[%emt 0:01:43]} (14. Qd2 {is interesting.} Ne4 15. Qd4 Bc5 16. Qxe4 Bb7 17. Bxb5+ axb5 18. Qe2) 14... Bb7 {[%emt 0:02:50]} 15. a3 {[%emt 0:12:34]} Nd5 {[%emt 0:00:46]} (15... Bxf3 {keeps more tension.} 16. Bxf3 Nbd3 17. Qc2 Rc8) 16. Nc3 {[%emt 0:04:31] [#] Black must now prevent Nxd5.} Rc8 {[%emt 0:08:39] aiming for ...Nb3.} 17. Nxd5 {[%emt 0:04:28]} Bxd5 {[%emt 0:01:51]} 18. b4 {[%emt 0:04:56]} Na4 {[%emt 0:12:53]} 19. Qe3 {[%emt 0:14:30]} Qb7 {[%emt 0:00:08]} 20. Rac1 {[%emt 0:01:15]} Rxc1 {[%emt 0:00:31]} 21. Rxc1 {[%emt 0:00:01]} h6 {[%emt 0:01:12]} 22. Nd4 {[%emt 0:03:21]} Be7 {[%emt 0:03:28]} (22... g5 $5 23. Bg3 Be7 $14) 23. Bf3 {[%emt 0:07:23]} ({White should play} 23. Qg3 $11 g5 24. Be3) 23... Bxf3 $15 {[%emt 0:03:23]} 24. Qxf3 {[%emt 0:00:51]} Qxf3 {[%emt 0:00:34]} 25. Nxf3 {[%emt 0:01:05]} Kd7 {[%emt 0:00:36] Against Rc8} 26. Rd1+ {[%emt 0:03:04]} Kc7 {[%emt 0:01:48] Black keeps a firm grip on the game.} 27. Kf1 {[%emt 0:04:27]} Rd8 {[%emt 0:04:16]} 28. Rxd8 {[%emt 0:00:49]} Bxd8 $17 {[%emt 0:00:17][%mdl 4096] Endgame KBN-KBN} 29. Nd4 {[%emt 0:03:37]} Nb2 {[%emt 0:05:28]} 30. Ke2 {[%emt 0:00:29]} Nc4 {[%emt 0:01:31]} 31. Nc2 {[%emt 0:01:04]} (31. Bg3 $17) 31... Kc6 {[%emt 0:00:29]} 32. Kd3 {[%emt 0:01:05]} Bb6 {[%emt 0:04:35]} 33. Bg3 {[%emt 0:00:14]} (33. Ke4 {was worth a try.}) 33... Kd5 $19 {[%emt 0:00:34]} 34. f4 {[%emt 0:00:16]} g5 {[%emt 0:01:38]} 35. Kc3 {[%emt 0:00:35]} Ne3 {[%emt 0:03:20]} 36. Ne1 {[%emt 0:01:04]} Ke4 {[%emt 0:01:35]} 37. fxg5 {[%emt 0:00:28]} hxg5 {[%emt 0:00:01]} 38. Nf3 {[%emt 0:00:22]} Nd5+ {[%emt 0:00:38]} 39. Kb3 {[%emt 0:01:53]} (39. Kc2 $142 Ne3+ 40. Kc3) 39... Be3 {[%emt 0:00:10]} 40. h3 {[%emt 0:00:00]} Ne7 {[%emt 0:00:00]} 41. Be1 {[%emt 0:03:28]} Nc6 {[%emt 0:05:07]} 42. Bc3 {[%emt 0:00:23]} Kd3 {[%emt 0:00:40]} 43. Ne1+ {[%emt 0:01:27] [#]} Ke2 $1 {[%emt 0:01:18]} 44. Kc2 {[%emt 0:00:41]} (44. Nf3 $142) 44... Nxe5 {[%emt 0:03:00] Black is clearly winning.} 45. Bxe5 {[%emt 0:00:09]} (45. Kb3 $142 Nc4 46. Nc2) 45... Kxe1 {[%emt 0:00:03] KB-KB} 46. Kd3 {[%emt 0:00:27]} Kf2 {[%emt 0:01:25]} 47. g3 {[%emt 0:00:06]} Kf3 {[%emt 0:02:57] And now ...f5 would win.} 48. h4 {[%emt 0:00:51]} gxh4 {[%emt 0:00:35]} 49. gxh4 {[%emt 0:00:02]} Bc1 {[%emt 0:00:48]} 50. Bf6 {[%emt 0:01:04]} Kg4 {[%emt 0:00:18]} 51. Kc3 {[%emt 0:00:28]} Be3 {[%emt 0:00:47] Weighted Error Value: White=0.43/Black=0.06 (flawless)} 0-1

[Event "Polish Youth Ekstraliga 2022"]
[Site "Lublin"]
[Date "2022.06.29"]
[Round "5.3"]
[White "Mulawa, Cyprian"]
[Black "Jaworski, Tymon"]
[Result "0-1"]
[ECO "C80"]
[WhiteElo "2050"]
[BlackElo "1628"]
[Annotator "TA"]
[PlyCount "80"]
[EventDate "2022.06.24"]
[EventType "team-tourn"]
[EventCountry "POL"]
[SourceTitle "playchess.com"]
[Source "ChessBase"]
[SourceQuality "1"]
[TimeControl "40/5400+30:1800+30"]

{[%evp 18,80,68,48,42,38,36,50,45,52,74,56,51,43,60,21,22,8,65,59,77,70,62,71,98,63,67,66,77,22,23,0,0,-16,-25,-23,-25,-22,0,0,0,0,0,0,51,28,42,23,54,47,145,31,53,0,0,0,-6,-227,-225,-666,-622,-2027,-1701,-29986,-5265]} 1. e4 {[%emt 0:00:21]} e5 {[%emt 0:00:06]} 2. Nf3 {[%emt 0:00:06]} Nc6 {[%emt 0:00:18]} 3. Bb5 {[%emt 0:00:29]} a6 {[%emt 0:00:11]} 4. Ba4 {[%emt 0:00:10]} Nf6 {[%emt 0:00:35]} 5. O-O {[%emt 0:00:26][%cal Be1g1,Bg1h1,Bh1h2][%mdl 32]} Nxe4 {[%emt 0:00:39]} 6. d4 {[%emt 0:00:39]} exd4 {[%emt 0:01:29]} 7. Re1 {[%emt 0:01:54]} d5 {[%emt 0:01:05]} 8. Nxd4 {[%emt 0:00:22]} Bd6 {[%emt 0:01:39]} 9. Nxc6 {[%emt 0:01:31]} Bxh2+ {[%emt 0:01:55]} 10. Kh1 {[%emt 0:00:39]} ({Much weaker is} 10. Kxh2 Qh4+ 11. Kg1 Qxf2+ 12. Kh1 Qh4+ 13. Kg1 Qf2+ 14. Kh1 Qh4+ 15. Kg1 Qf2+ $11) 10... Qh4 {[%emt 0:01:32] [#] C80: Open Ruy Lopez: Sidelines and 9 Nbd2.} 11. Rxe4+ {[%emt 0:00:30]} dxe4 {[%emt 0:00:16] [#]} 12. Qd8+ $1 {[%emt 0:00:07]} Qxd8 {[%emt 0:00:16] White is slightly better.} 13. Nxd8+ {[%emt 0:00:02]} Kxd8 {[%emt 0:00:20]} 14. Kxh2 {[%emt 0:00:04]} Be6 $1 {[%emt 0:00:39]} 15. Be3 {[%emt 0:06:40][%mdl 1024] White has compensation.} Ke7 {[%emt 0:03:51]} 16. Nc3 {[%emt 0:02:13]} f5 $1 {[%emt 0:03:04]} 17. Ne2 {[%emt 0:05:35]} (17. g4 $5 {[%cal Rg4f5]}) 17... b5 {[%emt 0:17:20]} (17... Bc4 $11 18. Ng3 g6) 18. Bb3 $14 {[%emt 0:01:37] [#]} Rhg8 $146 {[%emt 0:03:07]} ({Predecessor:} 18... Bxb3 19. axb3 h6 {½-½ (19) Aldokhin,I (2345)-Slugin,S (2439) Voronezh 2009}) 19. Nd4 {[%emt 0:27:04]} Bxb3 {[%emt 0:01:16]} 20. cxb3 {[%emt 0:00:57]} Rgf8 {[%emt 0:15:14]} 21. Rc1 {[%emt 0:04:05]} f4 {[%emt 0:04:53]} 22. Bd2 {[%emt 0:01:43]} Kd7 {[%emt 0:03:38] [#]} 23. b4 {[%emt 0:11:08]} (23. Rc5 $1 $16) 23... Rae8 $11 {[%emt 0:03:17]} 24. Bc3 {[%emt 0:02:19]} g5 {[%emt 0:03:46][%cal Bg7g5,Bg5g4][%mdl 32]} 25. Nb3 {[%emt 0:04:39]} g4 {[%emt 0:10:27]} 26. Nc5+ {[%emt 0:05:33]} Kc8 {[%emt 0:00:56]} 27. Nxa6 {[%emt 0:02:11]} Rf7 {[%emt 0:01:27]} 28. Nc5 {[%emt 0:06:48]} h5 {[%emt 0:04:40]} 29. Re1 {[%emt 0:05:59]} e3 {[%emt 0:01:38]} 30. fxe3 {[%emt 0:00:29]} fxe3 {[%emt 0:00:41]} (30... Rxe3 $11 31. Rd1 Re2) 31. Nd3 $1 $14 {[%emt 0:02:31]} Re4 {[%emt 0:04:28]} 32. Kg3 {[%emt 0:03:58]} Kb8 {[%emt 0:07:46]} 33. Re2 {[%emt 0:00:22]} Rh7 {[%emt 0:01:07] [#]} (33... Rf1 $14) 34. Bf6 {[%emt 0:01:07]} (34. Kh4 $1 $16) 34... Rd7 $1 {[%emt 0:01:19]} 35. Nf4 {[%emt 0:01:50]} (35. Nc1 $14) 35... Rd2 $11 {[%emt 0:00:42][%cal Oe4f4]} 36. Re1 {[%emt 0:00:59]} Rf2 {[%emt 0:00:54]} 37. Nxh5 {[%emt 0:00:15] This costs White the game.} (37. Bg5 $11 {and White stays safe.}) 37... Rf5 $19 {[%emt 0:00:19]} 38. Rh1 {[%emt 0:00:53]} (38. Kh4 g3+ 39. Kxg3) 38... e2 {[%emt 0:00:18] Threatens to win with ...Rf1.} 39. Bc3 {[%emt 0:00:12]} Rf1 {[%emt 0:00:19]} 40. Nf6 {[%emt 0:00:00]} Re3+ {[%emt 0:00:00] Weighted Error Value: White=0.70/Black=0.14 (very precise)} 0-1